[Event "*** Titled Tuesday Blitz"]
[Site "Chess.com"]
[Date "2020.04.14"]
[Round "3"]
[White "LuckSlayeer"]
[Black "chito89"]
[Result "0-1"]
[WhiteElo "2583"]
[BlackElo "2790"]
[TimeControl "180+1"]
[EndTime "10:28:31 PDT"]
[Termination "chito89 won by resignation"]

1. Nf3 {[%clk 0:03:00]} 1... Nf6 {[%clk 0:02:57]} 2. c4 {[%clk 0:02:59.7]} 2...
e6 {[%clk 0:02:55.6]} 3. Nc3 {[%clk 0:02:59.8]} 3... Bb4 {[%clk 0:02:48.9]} 4.
Qc2 {[%clk 0:02:57.1]} 4... O-O {[%clk 0:02:39]} 5. a3 {[%clk 0:02:56.2]} 5...
Bxc3 {[%clk 0:02:36.8]} 6. Qxc3 {[%clk 0:02:57.1]} 6... d6 {[%clk 0:02:36.8]} 7.
e3 {[%clk 0:02:53.8]} 7... e5 {[%clk 0:02:34.3]} 8. Be2 {[%clk 0:02:52.6]} 8...
Bg4 {[%clk 0:02:30.3]} 9. h3 {[%clk 0:02:49.7]} 9... Bh5 {[%clk 0:02:30]} 10. d3
{[%clk 0:02:46.8]} 10... c5 {[%clk 0:02:08.6]} 11. b4 {[%clk 0:02:21.6]} 11...
Nc6 {[%clk 0:01:58.7]} 12. Bb2 {[%clk 0:02:12.4]} 12... Re8 {[%clk 0:01:57.8]}
13. O-O {[%clk 0:02:10.8]} 13... h6 {[%clk 0:01:46.6]} 14. Rfe1 {[%clk
0:02:00.5]} 14... Qd7 {[%clk 0:01:43.5]} 15. Rad1 {[%clk 0:01:40.8]} 15... Rac8
{[%clk 0:01:40.3]} 16. b5 {[%clk 0:01:32.1]} 16... Ne7 {[%clk 0:01:33]} 17. d4
{[%clk 0:01:32.3]} 17... cxd4 {[%clk 0:01:31.8]} 18. exd4 {[%clk 0:01:33.2]}
18... e4 {[%clk 0:01:29]} 19. Ne5 {[%clk 0:01:27.2]} 19... Qe6 {[%clk
0:01:03.1]} 20. Ng4 {[%clk 0:00:48.3]} 20... Bxg4 {[%clk 0:00:46.9]} 21. hxg4
{[%clk 0:00:40.3]} 21... d5 {[%clk 0:00:46]} 22. c5 {[%clk 0:00:37.7]} 22...
Nxg4 {[%clk 0:00:44.2]} 23. Qg3 {[%clk 0:00:36.1]} 23... Nf6 {[%clk 0:00:43.5]}
24. Bc1 {[%clk 0:00:36.1]} 24... Nf5 {[%clk 0:00:42.3]} 25. Qh3 {[%clk
0:00:33.2]} 25... g5 {[%clk 0:00:30.6]} 26. g3 {[%clk 0:00:27.1]} 26... Kg7
{[%clk 0:00:27.6]} 27. Bg4 {[%clk 0:00:26.5]} 27... Nxg4 {[%clk 0:00:26.7]} 28.
Qxg4 {[%clk 0:00:27.4]} 28... Nxd4 {[%clk 0:00:26.4]} 29. Qxe6 {[%clk
0:00:24.6]} 29... Nf3+ {[%clk 0:00:24.9]} 30. Kf1 {[%clk 0:00:22.4]} 30... fxe6
{[%clk 0:00:24.9]} 31. Bb2+ {[%clk 0:00:21.7]} 31... Kg6 {[%clk 0:00:23.3]} 32.
Re3 {[%clk 0:00:21.8]} 32... Rxc5 {[%clk 0:00:23.4]} 33. a4 {[%clk 0:00:22.5]}
33... Rc2 {[%clk 0:00:22.7]} 34. Ba3 {[%clk 0:00:23]} 34... Rec8 {[%clk
0:00:22.3]} 35. Bd6 {[%clk 0:00:23]} 35... Rc1 {[%clk 0:00:21.7]} 36. Ree1
{[%clk 0:00:17.6]} 36... Nxe1 {[%clk 0:00:21]} 37. Kxe1 {[%clk 0:00:18.2]} 37...
Rxd1+ {[%clk 0:00:20.6]} 38. Kxd1 {[%clk 0:00:19.1]} 38... Rc4 {[%clk
0:00:20.7]} 39. a5 {[%clk 0:00:19.6]} 39... Ra4 {[%clk 0:00:20.6]} 40. b6 {[%clk
0:00:20.1]} 40... Rxa5 {[%clk 0:00:19.7]} 41. bxa7 {[%clk 0:00:20.5]} 41... Rxa7
{[%clk 0:00:20.6]} 42. Ke2 {[%clk 0:00:21.4]} 42... Ra2+ {[%clk 0:00:19.8]} 43.
Ke3 {[%clk 0:00:21.6]} 43... Kf5 {[%clk 0:00:20.4]} 44. Kd4 {[%clk 0:00:22]}
44... h5 {[%clk 0:00:20.6]} 45. Bb4 {[%clk 0:00:20.8]} 45... Rxf2 {[%clk
0:00:20]} 46. Kc5 {[%clk 0:00:21.2]} 46... Rf3 {[%clk 0:00:19.5]} 47. Be1 {[%clk
0:00:20.2]} 47... Rf1 {[%clk 0:00:17.4]} 48. Bd2 {[%clk 0:00:19.3]} 0-1

[Event "*** Titled Tuesday Blitz"]
[Site "Chess.com"]
[Date "2020.04.14"]
[Round "3"]
[White "dsanchez1973"]
[Black "misha_chessone"]
[Result "1-0"]
[WhiteElo "2085"]
[BlackElo "2251"]
[TimeControl "180+1"]
[EndTime "10:28:31 PDT"]
[Termination "dsanchez1973 won on time"]

1. e4 {[%clk 0:03:00.9]} 1... e6 {[%clk 0:02:58.5]} 2. d4 {[%clk 0:03:00.7]}
2... d5 {[%clk 0:02:57.2]} 3. Nc3 {[%clk 0:03:01.3]} 3... Bb4 {[%clk 0:02:56.2]}
4. e5 {[%clk 0:03:01.6]} 4... c5 {[%clk 0:02:56]} 5. a3 {[%clk 0:03:02.3]} 5...
Bxc3+ {[%clk 0:02:55.9]} 6. bxc3 {[%clk 0:03:03.2]} 6... Ne7 {[%clk 0:02:55]} 7.
Qg4 {[%clk 0:03:03.8]} 7... Qc7 {[%clk 0:02:54.8]} 8. Qxg7 {[%clk 0:03:04]} 8...
Rg8 {[%clk 0:02:54.9]} 9. Qxh7 {[%clk 0:03:04.7]} 9... cxd4 {[%clk 0:02:54.7]}
10. Ne2 {[%clk 0:03:04.1]} 10... Nbc6 {[%clk 0:02:54.2]} 11. f4 {[%clk
0:03:04.6]} 11... Bd7 {[%clk 0:02:54.2]} 12. Qd3 {[%clk 0:03:04.5]} 12... dxc3
{[%clk 0:02:54.6]} 13. Nxc3 {[%clk 0:03:04.7]} 13... a6 {[%clk 0:02:52.8]} 14.
Rb1 {[%clk 0:03:04.8]} 14... Nf5 {[%clk 0:02:49]} 15. Ne2 {[%clk 0:03:03.6]}
15... Na5 {[%clk 0:02:40.1]} 16. h3 {[%clk 0:03:03.6]} 16... Bb5 {[%clk
0:02:33.6]} 17. Qc3 {[%clk 0:03:00.4]} 17... Nc4 {[%clk 0:02:33]} 18. g4 {[%clk
0:02:56.1]} 18... Nh4 {[%clk 0:02:25.3]} 19. Nd4 {[%clk 0:02:53.7]} 19... Bd7
{[%clk 0:01:59.1]} 20. Bxc4 {[%clk 0:02:50.4]} 20... dxc4 {[%clk 0:01:57.6]} 21.
Be3 {[%clk 0:02:47.6]} 21... Ng2+ {[%clk 0:01:52]} 22. Kf2 {[%clk 0:02:47.4]}
22... Nxe3 {[%clk 0:01:51.8]} 23. Qxe3 {[%clk 0:02:46.4]} 23... c3 {[%clk
0:01:48.6]} 24. Rb3 {[%clk 0:02:30.6]} 24... Rc8 {[%clk 0:01:45.4]} 25. g5
{[%clk 0:02:28.5]} 25... b5 {[%clk 0:01:35.2]} 26. h4 {[%clk 0:02:27]} 26... Qb7
{[%clk 0:01:25.3]} 27. Rh2 {[%clk 0:02:26]} 27... a5 {[%clk 0:01:16]} 28. Rxc3
{[%clk 0:02:25.5]} 28... Rxc3 {[%clk 0:01:12.4]} 29. Qxc3 {[%clk 0:02:25.4]}
29... Qe4 {[%clk 0:01:10.4]} 30. Qe3 {[%clk 0:02:06.9]} 30... Qd5 {[%clk
0:01:04.7]} 31. h5 {[%clk 0:02:04.7]} 31... b4 {[%clk 0:00:40.9]} 32. axb4
{[%clk 0:02:02.7]} 32... axb4 {[%clk 0:00:41.3]} 33. h6 {[%clk 0:01:59.6]} 33...
Ba4 {[%clk 0:00:33.4]} 34. h7 {[%clk 0:01:41.3]} 34... Rh8 {[%clk 0:00:33.5]}
35. Kg3 {[%clk 0:01:38.3]} 35... Qc4 {[%clk 0:00:24.9]} 36. g6 {[%clk
0:01:25.1]} 36... fxg6 {[%clk 0:00:22.1]} 37. Qe4 {[%clk 0:01:24.1]} 37... Qc3+
{[%clk 0:00:07.3]} 38. Kg4 {[%clk 0:01:15.3]} 38... Ke7 {[%clk 0:00:03.9]} 39.
Qxg6 {[%clk 0:00:52.7]} 39... Qxd4 {[%clk 0:00:03.6]} 40. Qf6+ {[%clk
0:00:49.6]} 40... Kd7 {[%clk 0:00:03.6]} 41. Qxh8 {[%clk 0:00:30.1]} 41... Qd1+
{[%clk 0:00:02.5]} 42. Kg5 {[%clk 0:00:25.1]} 42... Qg1+ {[%clk 0:00:02.1]} 43.
Kf6 {[%clk 0:00:25.3]} 43... Qg2 {[%clk 0:00:02]} 44. Rxg2 {[%clk 0:00:24.2]}
1-0

[Event "*** Titled Tuesday Blitz"]
[Site "Chess.com"]
[Date "2020.04.14"]
[Round "3"]
[White "josiwales"]
[Black "ljuks68"]
[Result "1-0"]
[WhiteElo "2571"]
[BlackElo "2335"]
[TimeControl "180+1"]
[EndTime "10:28:32 PDT"]
[Termination "josiwales won on time"]

1. e4 {[%clk 0:03:00.9]} 1... e6 {[%clk 0:02:59.3]} 2. d4 {[%clk 0:02:58.6]}
2... d5 {[%clk 0:02:59.1]} 3. exd5 {[%clk 0:02:59.5]} 3... exd5 {[%clk
0:02:58.8]} 4. Nf3 {[%clk 0:03:00.4]} 4... Nf6 {[%clk 0:02:58.9]} 5. Bd3 {[%clk
0:03:00.2]} 5... c5 {[%clk 0:02:57.3]} 6. O-O {[%clk 0:02:57.6]} 6... Nc6 {[%clk
0:02:57.4]} 7. Re1+ {[%clk 0:02:56.4]} 7... Be7 {[%clk 0:02:57.4]} 8. dxc5
{[%clk 0:02:56.5]} 8... O-O {[%clk 0:02:57.4]} 9. Be3 {[%clk 0:02:53.4]} 9...
Ng4 {[%clk 0:02:57]} 10. Qd2 {[%clk 0:02:47]} 10... Nxe3 {[%clk 0:02:55]} 11.
Qxe3 {[%clk 0:02:47.9]} 11... Re8 {[%clk 0:02:34.7]} 12. Nbd2 {[%clk 0:02:17.9]}
12... Be6 {[%clk 0:02:16]} 13. Nb3 {[%clk 0:02:10.2]} 13... Bg4 {[%clk 0:02:06]}
14. Ne5 {[%clk 0:01:58.5]} 14... Bf6 {[%clk 0:01:35.7]} 15. Nxc6 {[%clk
0:01:37.6]} 15... Qd7 {[%clk 0:01:22.8]} 16. Qg3 {[%clk 0:01:21.3]} 16... bxc6
{[%clk 0:01:19.4]} 17. c3 {[%clk 0:01:21.2]} 17... a5 {[%clk 0:01:13.7]} 18. Nd4
{[%clk 0:01:17.2]} 18... a4 {[%clk 0:01:12.8]} 19. Nxc6 {[%clk 0:01:04.2]} 19...
Qxc6 {[%clk 0:01:12.5]} 20. Qxg4 {[%clk 0:01:04.2]} 20... a3 {[%clk 0:01:12.4]}
21. bxa3 {[%clk 0:00:34.2]} 21... Bxc3 {[%clk 0:01:07.8]} 22. Bxh7+ {[%clk
0:00:27.3]} 22... Kh8 {[%clk 0:00:38.4]} 23. Rxe8+ {[%clk 0:00:22.5]} 23... Rxe8
{[%clk 0:00:37.3]} 24. Rd1 {[%clk 0:00:20.5]} 24... d4 {[%clk 0:00:27]} 25. Bd3
{[%clk 0:00:18.3]} 25... g6 {[%clk 0:00:25.2]} 26. h3 {[%clk 0:00:16.4]} 26...
Qxc5 {[%clk 0:00:24.3]} 27. Qh4+ {[%clk 0:00:16.6]} 27... Kg7 {[%clk 0:00:23.9]}
28. Qf4 {[%clk 0:00:14.1]} 28... Qxa3 {[%clk 0:00:22]} 29. Bc4 {[%clk
0:00:14.4]} 29... Qe7 {[%clk 0:00:18.5]} 30. Rd3 {[%clk 0:00:10.9]} 30... Qe1+
{[%clk 0:00:05.4]} 31. Kh2 {[%clk 0:00:11.2]} 31... Re7 {[%clk 0:00:05.6]} 32.
Qg3 {[%clk 0:00:08.2]} 32... Qe2 {[%clk 0:00:03.6]} 33. Rxd4 {[%clk 0:00:06.4]}
33... Bxd4 {[%clk 0:00:02.7]} 34. Bxe2 {[%clk 0:00:06.1]} 34... Rxe2 {[%clk
0:00:03.3]} 35. Qd3 {[%clk 0:00:04.2]} 35... Be5+ {[%clk 0:00:02.6]} 36. f4
{[%clk 0:00:02.4]} 36... Bxf4+ {[%clk 0:00:02]} 37. Kg1 {[%clk 0:00:02.9]} 1-0

[Event "*** Titled Tuesday Blitz"]
[Site "Chess.com"]
[Date "2020.04.14"]
[Round "3"]
[White "Muracle"]
[Black "sebsep"]
[Result "1-0"]
[WhiteElo "2684"]
[BlackElo "2377"]
[TimeControl "180+1"]
[EndTime "10:28:33 PDT"]
[Termination "Muracle won by resignation"]

1. e4 {[%clk 0:03:00.9]} 1... e5 {[%clk 0:02:59.7]} 2. Nf3 {[%clk 0:03:00.7]}
2... Nc6 {[%clk 0:03:00.2]} 3. Bb5 {[%clk 0:03:00.4]} 3... a6 {[%clk 0:03:00.5]}
4. Bxc6 {[%clk 0:03:00.6]} 4... dxc6 {[%clk 0:03:01.4]} 5. O-O {[%clk
0:03:00.9]} 5... f6 {[%clk 0:03:01.1]} 6. d4 {[%clk 0:03:00.7]} 6... exd4 {[%clk
0:03:00.9]} 7. Nxd4 {[%clk 0:03:00.9]} 7... c5 {[%clk 0:03:01.2]} 8. Nb3 {[%clk
0:03:01.1]} 8... Qxd1 {[%clk 0:03:00.3]} 9. Rxd1 {[%clk 0:03:00.7]} 9... Bg4
{[%clk 0:03:00.8]} 10. f3 {[%clk 0:02:53.6]} 10... Be6 {[%clk 0:03:00.7]} 11.
Be3 {[%clk 0:02:53]} 11... b6 {[%clk 0:02:59.7]} 12. a4 {[%clk 0:02:51.6]} 12...
a5 {[%clk 0:02:42.5]} 13. Nc3 {[%clk 0:02:51.1]} 13... Bd6 {[%clk 0:02:42.9]}
14. Nb5 {[%clk 0:02:28.2]} 14... O-O-O {[%clk 0:02:41.5]} 15. Rd2 {[%clk
0:02:06]} 15... Ne7 {[%clk 0:02:28.4]} 16. Rad1 {[%clk 0:02:03.3]} 16... Be5
{[%clk 0:02:25.1]} 17. Na7+ {[%clk 0:02:02.2]} 17... Kb7 {[%clk 0:02:21.7]} 18.
Rxd8 {[%clk 0:02:01.7]} 18... Rxd8 {[%clk 0:02:22.6]} 19. Rxd8 {[%clk
0:02:01.8]} 19... Kxa7 {[%clk 0:02:23.1]} 20. f4 {[%clk 0:02:00.3]} 20... Bd6
{[%clk 0:02:19.5]} 21. e5 {[%clk 0:01:58.2]} 21... fxe5 {[%clk 0:02:16.5]} 22.
fxe5 {[%clk 0:01:58.5]} 22... Bxe5 {[%clk 0:02:16.5]} 23. Nxc5 {[%clk
0:01:58.5]} 23... bxc5 {[%clk 0:01:59.1]} 24. Bxc5+ {[%clk 0:01:57.3]} 24... Kb7
{[%clk 0:01:59.5]} 25. Bxe7 {[%clk 0:01:56.2]} 25... Bxb2 {[%clk 0:01:59.5]} 26.
Bg5 {[%clk 0:01:46.2]} 26... Be5 {[%clk 0:01:46.8]} 27. Bd2 {[%clk 0:01:40.9]}
27... Bf6 {[%clk 0:01:26.9]} 28. Rd3 {[%clk 0:01:35.5]} 28... Bc4 {[%clk
0:01:25.5]} 29. Rh3 {[%clk 0:01:29.3]} 29... Be6 {[%clk 0:01:20.4]} 30. Rh5
{[%clk 0:01:23]} 30... Bd7 {[%clk 0:01:10]} 31. Rxa5 {[%clk 0:01:19]} 31... Bd4+
{[%clk 0:01:09.4]} 32. Kf1 {[%clk 0:01:15.1]} 32... Bb6 {[%clk 0:01:10.3]} 33.
Rh5 {[%clk 0:01:10.7]} 33... Bxa4 {[%clk 0:01:05.8]} 34. Rxh7 {[%clk 0:01:10.2]}
34... Bd4 {[%clk 0:01:01.3]} 35. c3 {[%clk 0:01:08.1]} 35... Bf6 {[%clk
0:01:00.9]} 36. Ke2 {[%clk 0:01:06.4]} 36... Kc6 {[%clk 0:00:59.8]} 37. g4
{[%clk 0:01:03.1]} 37... Kd5 {[%clk 0:00:58.5]} 38. g5 {[%clk 0:01:00.1]} 38...
Be5 {[%clk 0:00:58.5]} 39. h4 {[%clk 0:01:00.1]} 39... Bd7 {[%clk 0:00:58]} 40.
h5 {[%clk 0:00:56.5]} 40... Bf5 {[%clk 0:00:57.7]} 41. g6 {[%clk 0:00:54.8]}
41... Ke6 {[%clk 0:00:49.8]} 42. Kf3 {[%clk 0:00:49]} 42... Kf6 {[%clk
0:00:46.9]} 43. Rh8 {[%clk 0:00:45.2]} 43... Bd6 {[%clk 0:00:45.4]} 44. c4
{[%clk 0:00:43.7]} 44... Be6 {[%clk 0:00:41.3]} 45. Bc3+ {[%clk 0:00:33.8]}
45... Kg5 {[%clk 0:00:38.4]} 46. h6 {[%clk 0:00:29.6]} 46... Bg4+ {[%clk
0:00:26.6]} 47. Kg2 {[%clk 0:00:28.1]} 47... Kxg6 {[%clk 0:00:22]} 48. hxg7
{[%clk 0:00:26.5]} 48... Be6 {[%clk 0:00:19.7]} 49. g8=Q+ {[%clk 0:00:25]} 49...
Bxg8 {[%clk 0:00:20.1]} 50. Rxg8+ {[%clk 0:00:25.9]} 50... Kf5 {[%clk
0:00:20.4]} 51. Kf3 {[%clk 0:00:25.3]} 51... Ke6 {[%clk 0:00:20.2]} 52. Rg6+
{[%clk 0:00:25.1]} 1-0

[Event "*** Titled Tuesday Blitz"]
[Site "Chess.com"]
[Date "2020.04.14"]
[Round "3"]
[White "Triumphmate"]
[Black "Zajdanek"]
[Result "1-0"]
[WhiteElo "2597"]
[BlackElo "2374"]
[TimeControl "180+1"]
[EndTime "10:28:33 PDT"]
[Termination "Triumphmate won by resignation"]

1. e4 {[%clk 0:03:00.9]} 1... c5 {[%clk 0:02:59.6]} 2. Nf3 {[%clk 0:03:01]} 2...
Nc6 {[%clk 0:02:59.8]} 3. d4 {[%clk 0:03:01.9]} 3... cxd4 {[%clk 0:03:00.2]} 4.
Nxd4 {[%clk 0:03:02.8]} 4... e5 {[%clk 0:02:58.5]} 5. Nb3 {[%clk 0:03:02.1]}
5... Nf6 {[%clk 0:02:58.1]} 6. Nc3 {[%clk 0:03:03]} 6... Bb4 {[%clk 0:02:58]} 7.
Bd3 {[%clk 0:03:02.2]} 7... h6 {[%clk 0:02:55.4]} 8. O-O {[%clk 0:03:01.4]} 8...
O-O {[%clk 0:02:55.6]} 9. Nd5 {[%clk 0:03:00.8]} 9... Nxd5 {[%clk 0:02:51.4]}
10. exd5 {[%clk 0:03:01.7]} 10... Ne7 {[%clk 0:02:50.9]} 11. c4 {[%clk
0:03:00.2]} 11... d6 {[%clk 0:02:46.9]} 12. a3 {[%clk 0:02:58.5]} 12... Ba5
{[%clk 0:02:46.5]} 13. Nxa5 {[%clk 0:02:57.9]} 13... Qxa5 {[%clk 0:02:46.4]} 14.
b4 {[%clk 0:02:58.8]} 14... Qd8 {[%clk 0:02:43.9]} 15. f4 {[%clk 0:02:55.9]}
15... exf4 {[%clk 0:02:27.2]} 16. Bxf4 {[%clk 0:02:51.4]} 16... a5 {[%clk
0:02:27.9]} 17. Qf3 {[%clk 0:02:43.9]} 17... axb4 {[%clk 0:02:26]} 18. axb4
{[%clk 0:02:44.8]} 18... Rxa1 {[%clk 0:02:25]} 19. Rxa1 {[%clk 0:02:39]} 19...
Qb6+ {[%clk 0:02:24.9]} 20. Kh1 {[%clk 0:02:27.4]} 20... Qxb4 {[%clk 0:02:24.7]}
21. Qg3 {[%clk 0:02:18.5]} 21... Nf5 {[%clk 0:02:09.6]} 22. Bxf5 {[%clk
0:02:16.8]} 22... Bxf5 {[%clk 0:02:09.7]} 23. Bxh6 {[%clk 0:02:14.8]} 23... Bg6
{[%clk 0:01:57.7]} 24. Bf4 {[%clk 0:02:11.1]} 24... Qxc4 {[%clk 0:01:55.6]} 25.
Bxd6 {[%clk 0:02:07.7]} 25... Rc8 {[%clk 0:01:53.7]} 26. h4 {[%clk 0:02:04.7]}
26... Qxd5 {[%clk 0:01:50.8]} 27. Re1 {[%clk 0:02:00.9]} 27... b5 {[%clk
0:01:45.3]} 28. Bb4 {[%clk 0:01:58.9]} 28... Qc4 {[%clk 0:01:32.4]} 29. Bd6
{[%clk 0:01:36.1]} 29... b4 {[%clk 0:01:31.6]} 30. Be5 {[%clk 0:01:35.5]} 30...
b3 {[%clk 0:01:30.1]} 31. h5 {[%clk 0:01:35]} 31... f6 {[%clk 0:01:02.6]} 32.
Bxf6 {[%clk 0:01:31.3]} 32... Qd3 {[%clk 0:00:59.9]} 33. Qg4 {[%clk 0:01:03.4]}
33... Qc4 {[%clk 0:00:30.2]} 34. Qxg6 {[%clk 0:00:56.8]} 34... Qf7 {[%clk
0:00:30]} 35. Qxf7+ {[%clk 0:00:31.1]} 35... Kxf7 {[%clk 0:00:30]} 36. Be5
{[%clk 0:00:30.4]} 36... Rc4 {[%clk 0:00:26.8]} 37. g3 {[%clk 0:00:27.2]} 37...
Rc2 {[%clk 0:00:26]} 38. Rb1 {[%clk 0:00:26.4]} 38... Re2 {[%clk 0:00:24.1]} 39.
Bd4 {[%clk 0:00:24.3]} 39... Rd2 {[%clk 0:00:22.2]} 40. Bc3 {[%clk 0:00:24.2]}
40... Rd5 {[%clk 0:00:16.4]} 41. Rxb3 {[%clk 0:00:24.2]} 41... Rxh5+ {[%clk
0:00:16.6]} 42. Kg2 {[%clk 0:00:25.1]} 1-0

[Event "*** Titled Tuesday Blitz"]
[Site "Chess.com"]
[Date "2020.04.14"]
[Round "3"]
[White "DonPreuss"]
[Black "Rakesh"]
[Result "0-1"]
[WhiteElo "2174"]
[BlackElo "2369"]
[TimeControl "180+1"]
[EndTime "10:28:33 PDT"]
[Termination "Rakesh won on time"]

1. d4 {[%clk 0:02:22.8]} 1... Nf6 {[%clk 0:02:48.1]} 2. Nc3 {[%clk 0:02:22.1]}
2... d5 {[%clk 0:02:41.9]} 3. e4 {[%clk 0:02:22.2]} 3... dxe4 {[%clk 0:01:53.2]}
4. f3 {[%clk 0:02:21.7]} 4... e3 {[%clk 0:01:26.6]} 5. Bxe3 {[%clk 0:02:20.2]}
5... e6 {[%clk 0:01:27.5]} 6. Bd3 {[%clk 0:02:17.3]} 6... Nc6 {[%clk 0:01:28.4]}
7. a3 {[%clk 0:02:17.5]} 7... Bd6 {[%clk 0:01:27.7]} 8. Nge2 {[%clk 0:02:14.9]}
8... O-O {[%clk 0:01:28.6]} 9. O-O {[%clk 0:02:14.5]} 9... Nd5 {[%clk
0:01:29.5]} 10. Nxd5 {[%clk 0:02:11.7]} 10... exd5 {[%clk 0:01:30.4]} 11. f4
{[%clk 0:01:53.3]} 11... Re8 {[%clk 0:01:28.1]} 12. Qd2 {[%clk 0:01:50.1]} 12...
Bg4 {[%clk 0:01:25]} 13. Ng3 {[%clk 0:01:47.3]} 13... Qe7 {[%clk 0:01:19.7]} 14.
Rae1 {[%clk 0:01:46.2]} 14... Rad8 {[%clk 0:01:17.4]} 15. Qf2 {[%clk 0:01:16.9]}
15... a6 {[%clk 0:01:07.6]} 16. h3 {[%clk 0:01:00.3]} 16... Bc8 {[%clk
0:01:06.6]} 17. f5 {[%clk 0:00:59.2]} 17... Qh4 {[%clk 0:01:03.8]} 18. Nh1
{[%clk 0:00:29.4]} 18... Qxf2+ {[%clk 0:00:53.3]} 19. Nxf2 {[%clk 0:00:27.7]}
19... b5 {[%clk 0:00:48.2]} 20. c3 {[%clk 0:00:27.2]} 20... Na5 {[%clk
0:00:38.4]} 21. Ng4 {[%clk 0:00:24.4]} 21... Nc4 {[%clk 0:00:24.4]} 22. Bxc4
{[%clk 0:00:24.4]} 22... bxc4 {[%clk 0:00:25.3]} 23. Bg5 {[%clk 0:00:24.6]}
23... f6 {[%clk 0:00:25]} 24. Rxe8+ {[%clk 0:00:13.3]} 24... Rxe8 {[%clk
0:00:25.9]} 25. Bxf6 {[%clk 0:00:12.8]} 25... gxf6 {[%clk 0:00:20.5]} 26. Nxf6+
{[%clk 0:00:13.6]} 26... Kf7 {[%clk 0:00:21]} 27. Nxe8 {[%clk 0:00:13.9]} 27...
Kxe8 {[%clk 0:00:21.9]} 28. g4 {[%clk 0:00:13.9]} 28... Kf7 {[%clk 0:00:21.4]}
29. Kg2 {[%clk 0:00:14]} 29... Kf6 {[%clk 0:00:20.5]} 30. Kf3 {[%clk 0:00:14.2]}
30... h6 {[%clk 0:00:20.1]} 31. h4 {[%clk 0:00:13]} 31... Bd7 {[%clk 0:00:20]}
32. Re1 {[%clk 0:00:13.2]} 32... h5 {[%clk 0:00:19.8]} 33. Rf1 {[%clk
0:00:11.3]} 33... c5 {[%clk 0:00:17.9]} 34. g5+ {[%clk 0:00:06.1]} 34... Kxf5
{[%clk 0:00:17.8]} 35. Ke3+ {[%clk 0:00:04.2]} 35... Ke6 {[%clk 0:00:17.5]} 36.
g6 {[%clk 0:00:04.1]} 36... Ke7 {[%clk 0:00:14]} 37. g7 {[%clk 0:00:02.9]} 37...
Be6 {[%clk 0:00:14.1]} 38. Rf8 {[%clk 0:00:03.2]} 38... cxd4+ {[%clk 0:00:12.6]}
39. cxd4 {[%clk 0:00:01.5]} 39... Kd7 {[%clk 0:00:13.5]} 40. g8=Q {[%clk
0:00:01.3]} 40... Bxg8 {[%clk 0:00:14]} 41. Rxg8 {[%clk 0:00:01.5]} 41... Be7
{[%clk 0:00:14.9]} 0-1

[Event "*** Titled Tuesday Blitz"]
[Site "Chess.com"]
[Date "2020.04.14"]
[Round "3"]
[White "crescentmoon2411"]
[Black "swayamsm"]
[Result "1-0"]
[WhiteElo "2919"]
[BlackElo "2664"]
[TimeControl "180+1"]
[EndTime "10:28:34 PDT"]
[Termination "crescentmoon2411 won by resignation"]

1. e4 {[%clk 0:02:58.8]} 1... e6 {[%clk 0:02:59.9]} 2. d4 {[%clk 0:02:58.4]}
2... d5 {[%clk 0:03:00.8]} 3. Nc3 {[%clk 0:02:58.1]} 3... Nf6 {[%clk 0:02:59.3]}
4. e5 {[%clk 0:02:53.2]} 4... Nfd7 {[%clk 0:02:58.8]} 5. Nce2 {[%clk 0:02:47.7]}
5... c5 {[%clk 0:02:58.5]} 6. c3 {[%clk 0:02:47.9]} 6... Nc6 {[%clk 0:02:58.4]}
7. Nf3 {[%clk 0:02:46.2]} 7... b5 {[%clk 0:02:58.2]} 8. Nf4 {[%clk 0:02:35]}
8... b4 {[%clk 0:02:56.2]} 9. Bb5 {[%clk 0:02:29.9]} 9... Bb7 {[%clk 0:02:50.5]}
10. O-O {[%clk 0:02:29.2]} 10... Qa5 {[%clk 0:02:43.6]} 11. Bxc6 {[%clk
0:01:36.1]} 11... Bxc6 {[%clk 0:02:44.5]} 12. Bd2 {[%clk 0:01:35]} 12... bxc3
{[%clk 0:02:18.1]} 13. Bxc3 {[%clk 0:01:34.5]} 13... Qc7 {[%clk 0:02:17.2]} 14.
Ng5 {[%clk 0:01:29.7]} 14... cxd4 {[%clk 0:02:08.1]} 15. Bxd4 {[%clk 0:01:29.4]}
15... Nxe5 {[%clk 0:02:04.9]} 16. Re1 {[%clk 0:01:17.7]} 16... Bd6 {[%clk
0:01:56]} 17. Ngxe6 {[%clk 0:01:15.7]} 17... fxe6 {[%clk 0:01:54.8]} 18. Nxe6
{[%clk 0:01:14.2]} 18... Qb8 {[%clk 0:01:34.8]} 19. Bxe5 {[%clk 0:01:01.3]}
19... Bxe5 {[%clk 0:01:33.9]} 20. Qh5+ {[%clk 0:01:01.4]} 20... g6 {[%clk
0:01:33.9]} 21. Qxe5 {[%clk 0:01:01.5]} 21... Qxe5 {[%clk 0:01:34.4]} 22. Rxe5
{[%clk 0:01:02.3]} 22... Kd7 {[%clk 0:01:34.4]} 23. Nd4 {[%clk 0:01:00]} 23...
Rae8 {[%clk 0:01:24.6]} 24. Re3 {[%clk 0:00:55.6]} 24... Rxe3 {[%clk 0:01:17.5]}
25. fxe3 {[%clk 0:00:56.5]} 25... Bb7 {[%clk 0:01:14.6]} 26. Rf1 {[%clk
0:00:55]} 26... Ke7 {[%clk 0:01:13.8]} 27. Rc1 {[%clk 0:00:54.5]} 27... Kd7
{[%clk 0:01:08.2]} 28. Rc3 {[%clk 0:00:52.5]} 28... a6 {[%clk 0:01:05.9]} 29. h3
{[%clk 0:00:46.7]} 29... Re8 {[%clk 0:01:01.1]} 30. Kf2 {[%clk 0:00:43.1]} 30...
Kd6 {[%clk 0:01:00.7]} 31. Rb3 {[%clk 0:00:41.8]} 31... Re7 {[%clk 0:00:58.7]}
32. Rb6+ {[%clk 0:00:39]} 32... Kc7 {[%clk 0:00:51.3]} 33. Rf6 {[%clk
0:00:38.4]} 33... Kd7 {[%clk 0:00:45.2]} 34. b4 {[%clk 0:00:36.3]} 34... Kc7
{[%clk 0:00:44.1]} 35. a4 {[%clk 0:00:36.1]} 35... Bc8 {[%clk 0:00:44.2]} 36. a5
{[%clk 0:00:26.3]} 36... Bd7 {[%clk 0:00:44]} 37. Rxa6 {[%clk 0:00:26]} 37...
Kb7 {[%clk 0:00:43.1]} 38. Rb6+ {[%clk 0:00:25.9]} 38... Kc7 {[%clk 0:00:43.4]}
39. b5 {[%clk 0:00:24]} 39... Re8 {[%clk 0:00:42.4]} 40. Rf6 {[%clk 0:00:23.3]}
40... Kd8 {[%clk 0:00:33.9]} 41. Rf7 {[%clk 0:00:21]} 41... Kc7 {[%clk
0:00:31.8]} 42. b6+ {[%clk 0:00:20.7]} 42... Kd6 {[%clk 0:00:32.1]} 43. a6
{[%clk 0:00:20.6]} 43... Ra8 {[%clk 0:00:24.5]} 44. a7 {[%clk 0:00:20.1]} 44...
Bc8 {[%clk 0:00:24.7]} 45. Rxh7 {[%clk 0:00:18.8]} 45... Kc5 {[%clk 0:00:24.6]}
46. b7 {[%clk 0:00:18.9]} 46... Bxb7 {[%clk 0:00:25]} 47. Rxb7 {[%clk
0:00:19.5]} 47... Kd6 {[%clk 0:00:25.6]} 48. Rb8 {[%clk 0:00:18.6]} 48... Rxa7
{[%clk 0:00:23]} 49. Nb5+ {[%clk 0:00:18.6]} 1-0